bitfinex/quotes_SOLUSD_20250514
["timestamp","ask_amount","ask_price","bid_price","bid_amount"]
[1747210652518,13.61826813,180.85,180.79,13.61826813]
[1747210653099,26.0,180.87,180.79,13.61826813]
[1747210653399,26.0,180.87,180.83,13.61826813]
[1747210653710,26.0,180.87,180.85,13.61826813]
[1747210654219,5.52913856,180.86,180.85,13.61826813]
[1747210656032,13.82055392,180.89,180.85,13.61826813]
[1747210656214,13.82055392,180.89,180.87,13.61826813]
[1747210656411,13.82055392,180.89,180.88,13.61826813]
[1747210656615,13.82055392,180.89,180.85,6.2795]
[1747210656819,13.82055392,180.89,180.87,13.61826813]
[1747210657001,13.82055392,180.89,180.85,6.2795]
[1747210657002,13.82055392,180.89,180.88,13.61826813]
[1747210657620,5.52761041,180.91,180.88,13.61826813]
[1747210657814,5.52761041,180.91,180.9,13.61826813]
[1747210659408,19.34663644,180.91,180.86,0.14216157]
[1747210659607,19.34663644,180.91,180.9,13.61826813]
[1747210660312,19.34342875,180.94,180.9,13.61826813]
[1747210661032,60.59516653,180.94,180.89,13.61826813]
[1747210661328,46.9768984,180.94,180.89,13.61826813]
[1747210661538,13.61826813,180.93,180.87,13.61826813]
[1747210661839,26.0,180.9,180.85,13.61826813]
[1747210662038,13.61826813,180.88,180.83,15.13036813]
[1747210662243,19.35091501,180.87,180.83,15.13036813]
[1747210662534,19.35091501,180.87,180.84,13.61826813]
[1747210663216,13.61826813,180.85,180.79,13.61826813]
[1747210663423,26.0,180.86,180.79,13.61826813]
[1747210663628,39.61826813,180.86,180.81,13.61826813]
[1747210664445,19.35305501,180.85,180.84,13.61826813]
[1747210665333,19.35305501,180.85,180.83,13.61826813]
[1747210665832,19.35305501,180.85,180.84,13.61826813]
[1747210666220,19.35305501,180.85,180.83,13.61826813]
[1747210666421,55.28832862,180.87,180.84,13.61826813]
[1747210666622,19.3498452,180.88,180.84,13.61826813]
[1747210666921,19.3498452,180.88,180.87,13.61826813]
[1747210667637,46.9924812,180.88,180.84,13.61826813]
[1747210668017,60.61074933,180.88,180.83,13.61826813]
[1747210668217,13.61826813,180.84,180.79,13.61826813]
[1747210668420,19.35626589,180.82,180.77,13.61826813]
[1747210668637,19.35626589,180.82,180.78,13.61826813]
[1747210669715,19.35626589,180.82,180.76,7.9476]
[1747210669921,19.35626589,180.82,180.78,13.61826813]
[1747210670336,19.35626589,180.82,180.79,13.61826813]
[1747210671028,13.82590421,180.82,180.8,13.61826813]
[1747210671230,13.82590421,180.82,180.76,7.9476]
[1747210671231,13.61826813,180.81,180.76,7.9476]
[1747210671543,13.61826813,180.78,180.73,13.61826813]
[1747210671833,39.82590421,180.82,180.72,30.9827]
[1747210671834,13.61826813,180.81,180.75,13.61826813]
[1747210672020,13.61826813,180.81,180.76,13.61826813]
[1747210672422,13.61826813,180.81,180.75,13.61826813]
[1747210672621,13.61826813,180.81,180.72,30.9827]
[1747210672836,5.53127938,180.79,180.74,13.61826813]
[1747210673020,5.53127938,180.79,180.75,13.61826813]
[1747210673427,5.53127938,180.79,180.76,13.61826813]
[1747210673628,5.53127938,180.79,180.77,13.61826813]
[1747210674044,24.86,180.85,180.78,13.61826813]
[1747210674045,5.53066755,180.81,180.78,13.61826813]
[1747210674214,5.53066755,180.81,180.77,13.61826813]
[1747210674526,19.35733642,180.81,180.77,13.61826813]
[1747210674729,32.97560455,180.81,180.75,13.61826813]
[1747210675144,13.61826813,180.8,180.74,13.61826813]
[1747210675727,32.97560455,180.81,180.75,13.61826813]
[1747210675934,32.97560455,180.81,180.72,6.0027]
[1747210675935,19.35733642,180.81,180.76,13.61826813]
[1747210676134,32.97560455,180.81,180.76,13.61826813]
[1747210676657,32.97560455,180.81,180.75,13.61826813]
[1747210676658,13.61826813,180.8,180.75,13.61826813]
[1747210676825,13.61826813,180.79,180.74,13.61826813]
[1747210677024,13.61826813,180.77,180.71,15.15376813]
[1747210677338,19.36054873,180.78,180.75,13.61826813]
[1747210678253,19.36054873,180.78,180.76,13.61826813]
[1747210678438,19.36054873,180.78,180.77,13.61826813]
[1747210678647,5.53158535,180.78,180.77,13.61826813]
[1747210679141,47.00027646,180.85,180.77,13.61826813]
[1747210679448,47.00027646,180.85,180.72,13.7604297]
[1747210679449,26.0,180.84,180.8,13.61826813]
[1747210680043,26.0,180.84,180.79,13.61826813]
[1747210680248,47.00027646,180.85,180.8,13.61826813]
[1747210680550,19.35305501,180.85,180.84,13.61826813]
[1747210680851,5.52944429,180.85,180.84,13.61826813]
[1747210681031,13.82178963,180.88,180.84,13.61826813]
[1747210681236,5.52822157,180.89,180.87,13.61826813]
[1747210681544,5.52822157,180.89,180.88,13.61826813]
[1747210682158,5.52699939,180.93,180.88,13.61826813]
[1747210682321,5.52699939,180.93,180.92,13.61826813]
[1747210683134,67.24645719,180.98,180.92,13.61826813]
[1747210683135,19.34022213,180.97,180.92,13.61826813]
[1747210683524,60.58737902,180.97,180.88,6.5924]
[1747210683854,60.58737902,180.97,180.92,13.61826813]
[1747210683855,72.96911089,180.97,180.92,13.61826813]
[1747210684030,45.34022213,180.97,180.94,13.61826813]
[1747210684433,19.34022213,180.97,180.94,13.61826813]
[1747210684834,19.34022213,180.97,180.88,6.5924]
[1747210685034,19.34022213,180.97,180.96,13.61826813]
[1747210686055,5.52577775,180.97,180.96,13.61826813]
[1747210686953,13.81244593,181.0,180.96,13.61826813]
[1747210687150,13.81244593,181.0,180.97,13.61826813]
[1747210688051,13.81244593,181.0,180.99,13.61826813]
[1747210689358,46.95496042,181.03,180.99,13.61826813]
[1747210689557,46.95496042,181.03,181.0,13.61826813]
[1747210690131,19.33381206,181.03,180.95,0.28432314]
[1747210690335,19.33381206,181.03,181.01,13.61826813]
[1747210690636,19.33381206,181.03,180.92,26.9338]
[1747210690637,19.33381206,181.03,180.99,13.61826813]
[1747210690836,19.33381206,181.03,180.94,0.28432314]
[1747210691151,19.33381206,181.03,180.99,13.61826813]
[1747210691349,19.33381206,181.03,181.0,13.61826813]
[1747210692234,19.33381206,181.03,180.99,13.61826813]
[1747210692453,46.95354359,181.03,180.99,13.61826813]
[1747210692632,13.61826813,181.01,180.92,26.3338]
[1747210692843,13.61826813,181.0,180.95,13.61826813]
[1747210693053,46.95354359,181.03,180.92,26.3338]
[1747210693054,13.61826813,180.99,180.92,26.3338]
[1747210693247,13.61826813,180.98,180.93,13.61826813]
[1747210693436,19.34022213,180.97,180.93,13.61826813]
[1747210694549,19.34022213,180.97,180.94,13.61826813]
[1747210694950,19.34022213,180.97,180.95,13.61826813]
[1747210695149,19.34022213,180.97,180.96,13.61826813]
[1747210695665,13.61826813,181.02,180.96,13.61826813]
[1747210695666,19.33701656,181.0,180.96,13.61826813]
[1747210695967,19.33701656,181.0,180.97,13.61826813]
[1747210696544,19.33701656,181.0,180.92,1.5138]
[1747210696545,60.57959408,181.0,180.92,1.5138]
[1747210696747,46.96132595,181.0,180.95,13.61826813]
[1747210697081,60.57959408,181.0,180.95,13.61826813]
[1747210697396,46.96132595,181.0,180.95,13.61826813]
[1747210697555,60.57959408,181.0,180.95,13.61826813]
[1747210697874,45.33701656,181.0,180.97,13.61826813]
[1747210698054,45.33701656,181.0,180.96,13.61826813]
[1747210698266,19.33701656,181.0,180.98,13.61826813]
[1747210698581,19.33701656,181.0,180.99,13.61826813]
[1747210699684,46.95354359,181.03,180.99,13.61826813]
[1747210700881,46.95354359,181.03,180.93,0.28432314]
[1747210700882,13.61826813,181.02,180.93,0.28432314]
[1747210701053,13.61826813,181.02,180.97,13.61826813]
[1747210701258,60.57181172,181.03,180.98,13.61826813]
[1747210701767,60.57181172,181.03,180.95,13.61826813]
[1747210701768,26.0,181.0,180.95,13.61826813]
[1747210701973,26.0,181.0,180.92,1.5138]
[1747210701974,13.61826813,180.97,180.92,13.61826813]
[1747210702172,13.61826813,180.97,180.88,6.5924]
[1747210702361,13.61826813,180.96,180.88,6.5924]
[1747210702566,13.61826813,180.96,180.91,13.61826813]
[1747210702863,13.61826813,180.97,180.91,13.61826813]
[1747210703267,13.61826813,180.96,180.91,13.61826813]
[1747210703464,13.61826813,180.96,180.88,6.5924]
[1747210703667,19.34129089,180.96,180.88,6.5924]
[1747210703976,32.95955902,180.96,180.91,13.61826813]
[1747210704276,32.95955902,180.96,180.92,13.61826813]
[1747210704277,19.34129089,180.96,180.92,13.61826813]
[1747210705386,60.58997458,180.96,180.9,13.61826813]
[1747210705591,13.61826813,180.95,180.88,6.5924]
[1747210705763,13.61826813,180.92,180.88,6.5924]
[1747210706087,19.34449787,180.93,180.88,6.5924]
[1747210706261,19.34449787,180.93,180.9,13.61826813]
[1747210706887,5.52699939,180.93,180.9,13.61826813]
[1747210707189,19.34449787,180.93,180.89,13.61826813]
[1747210707860,13.81749848,180.93,180.9,13.61826813]
[1747210708164,13.81749848,180.93,180.88,20.21066813]
[1747210708365,27.43576661,180.93,180.87,15.24106813]
[1747210708568,13.61826813,180.92,180.87,15.24106813]
[1747210708886,13.81749848,180.93,180.88,13.61826813]
[1747210708887,27.43576661,180.93,180.88,13.61826813]
[1747210709056,13.81749848,180.93,180.88,13.61826813]
[1747210709262,27.43576661,180.93,180.88,13.61826813]
[1747210709462,27.43576661,180.93,180.87,13.61826813]
[1747210709981,13.61826813,180.91,180.85,13.61826813]
[1747210710285,39.61826813,180.88,180.8,1.5497]
[1747210710503,26.0,180.9,180.87,13.61826813]
[1747210710655,26.0,180.9,180.88,13.61826813]
[1747210711293,26.0,180.9,180.81,13.61826813]
[1747210711458,26.0,180.9,180.88,13.61826813]
[1747210711798,19.34663644,180.91,180.87,13.61826813]
[1747210712093,46.98468851,180.91,180.81,13.61826813]
[1747210712270,46.98468851,180.91,180.87,13.61826813]
[1747210713287,19.34663644,180.91,180.82,18.79181043]
[1747210713596,19.34663644,180.91,180.89,13.61826813]
[1747210713794,19.34663644,180.91,180.82,18.79181043]
[1747210713795,19.34663644,180.91,180.88,13.61826813]
[1747210714003,19.34663644,180.91,180.89,13.61826813]
[1747210714572,19.34663644,180.91,180.9,13.61826813]
[1747210715273,5.52761041,180.91,180.9,13.61826813]
[1747210715785,13.81714251,180.94,180.9,13.61826813]
[1747210715985,13.81714251,180.94,180.93,13.61826813]
[1747210716698,13.81714251,180.94,180.92,1.5943]
[1747210716877,13.81714251,180.94,180.93,13.61826813]
[1747210717606,5.5263885,180.95,180.93,13.61826813]
[1747210717908,13.81266673,181.0,180.94,13.61826813]
[1747210718086,13.81266673,181.0,180.92,1.5943]
[1747210718283,13.81266673,181.0,180.98,13.61826813]
[1747210719197,13.81266673,181.0,180.99,13.61826813]
[1747210719803,13.81266673,181.0,180.97,13.61826813]
[1747210721305,13.61826813,180.98,180.92,1.5943]
[1747210721514,13.61826813,180.97,180.92,13.61826813]
[1747210721879,19.34022213,180.97,180.93,13.61826813]
[1747210722081,19.34022213,180.97,180.94,13.61826813]
[1747210722992,19.34022213,180.97,180.95,13.61826813]
[1747210723393,19.34022213,180.97,180.96,13.61826813]
[1747210723794,5.52577775,180.97,180.96,13.61826813]
[1747210724096,5.52547242,180.98,180.96,13.61826813]
[1747210724300,5.52547242,180.98,180.97,13.61826813]
[1747210725204,13.81017614,181.03,180.98,7.7024]
[1747210725404,13.81017614,181.03,181.02,13.61826813]
[1747210726107,27.61533682,181.06,181.02,13.61826813]
[1747210726282,27.61533682,181.06,181.04,13.61826813]
[1747210726477,27.61533682,181.06,181.02,13.61826813]
[1747210726786,27.61533682,181.06,180.98,7.7024]
[1747210727093,27.61533682,181.06,181.02,13.61826813]
[1747210728092,46.94594544,181.06,181.02,13.61826813]
[1747210729083,46.94594544,181.06,180.98,7.7024]
[1747210729084,13.61826813,181.05,180.98,7.7024]
[1747210729410,13.61826813,181.05,181.0,13.61826813]
[1747210729611,60.56421357,181.06,181.01,13.61826813]
[1747210729903,46.94594544,181.06,181.01,13.61826813]
[1747210730084,46.94594544,181.06,180.98,7.7024]
[1747210730280,46.94594544,181.06,181.02,13.61826813]
[1747210731199,60.56421357,181.06,181.01,13.61826813]
[1747210732386,13.61826813,181.05,181.0,13.61826813]
[1747210732796,13.61826813,181.04,180.99,13.61826813]
[1747210733900,19.33381206,181.03,180.99,13.61826813]
[1747210734283,19.33381206,181.03,181.0,13.61826813]
[1747210735182,19.33381206,181.03,180.99,13.61826813]
[1747210735522,60.57181172,181.03,180.98,13.61826813]
[1747210735892,32.9563531,180.99,180.94,1.63]
[1747210736096,13.61826813,180.98,180.93,19.90066813]
[1747210736301,13.61826813,180.98,180.93,6.2824]
[1747210736606,60.58218878,180.99,180.94,13.61826813]
[1747210736989,60.58218878,180.99,180.93,13.61826813]
[1747210737183,46.96392065,180.99,180.94,13.61826813]
[1747210737396,46.96392065,180.99,180.95,13.61826813]
[1747210737610,19.33808497,180.99,180.97,13.61826813]
[1747210738792,46.96392065,180.99,180.95,13.61826813]
[1747210739123,46.96392065,180.99,180.96,13.61826813]
[1747210739281,19.33808497,180.99,180.97,13.61826813]
[1747210740190,13.81291784,180.99,180.97,13.61826813]
[1747210745291,13.81291784,180.99,180.9,1.6294]
[1747210745495,13.81291784,180.99,180.97,13.61826813]
[1747210745817,13.81291784,180.99,180.9,15.24766813]
[1747210745994,13.81291784,180.99,180.96,13.61826813]
[1747210747317,13.81291784,180.99,180.96,8.46349236]
[1747210748717,27.62278327,181.01,180.9,10.09289236]
[1747210748907,27.62278327,181.01,180.96,8.46349236]
[1747210750423,27.62278327,181.01,180.97,8.46349236]
[1747210751021,46.95873155,181.01,180.97,8.46349236]
[1747210751724,46.95873155,181.01,180.98,8.46349236]
[1747210751922,19.33594828,181.01,180.92,0.14216157]
[1747210752097,19.33594828,181.01,181.0,8.46349236]
[1747210752304,19.33594828,181.01,180.99,8.46349236]
[1747210752509,19.33594828,181.01,180.92,0.14216157]
[1747210752510,8.46349236,181.0,180.92,0.14216157]
[1747210752706,46.95873155,181.01,180.99,8.46349236]
[1747210752707,19.33594828,181.01,180.99,8.46349236]
[1747210753099,19.47277019,181.06,180.99,8.46349236]
[1747210753296,26.0,181.02,180.92,0.14216157]
[1747210753502,27.62215025,181.02,180.9,10.23505393]
[1747210753702,27.62215025,181.02,180.93,8.46349236]
[1747210754005,27.62215025,181.02,180.94,26.0]
[1747210754206,27.62215025,181.02,180.98,8.46349236]
[1747210755119,46.95703036,181.02,180.98,8.46349236]
[1747210755938,46.95703036,181.02,181.0,8.46349236]
[1747210756144,19.33488011,181.02,181.0,8.46349236]
[1747210756601,19.33488011,181.02,181.01,8.46349236]
[1747210756805,19.33488011,181.02,180.93,24.52]
[1747210757001,19.33488011,181.02,180.96,8.46349236]
[1747210759736,13.81062865,181.02,180.96,8.46349236]
[1747210760311,13.81062865,181.02,180.98,8.46349236]
[1747210763110,34.46349236,180.99,180.9,1.6294]
[1747210763315,26.0,180.99,180.86,6.1447]
[1747210763644,26.0,180.99,180.9,8.46349236]
[1747210763824,26.0,180.99,180.96,8.46349236]
[1747210764011,5.52547242,180.98,180.96,8.46349236]
[1747210764216,5.52547242,180.98,180.92,0.14216157]
[1747210764416,5.52547242,180.98,180.97,8.46349236]
[1747210765645,5.52547242,180.98,180.95,6.0232]
[1747210765845,5.52547242,180.98,180.97,8.46349236]
[1747210766226,46.95354359,181.03,180.97,8.46349236]
[1747210766434,46.95354359,181.03,180.98,8.46349236]
[1747210767052,46.95354359,181.03,180.99,8.46349236]
[1747210767348,46.95354359,181.03,180.95,6.0232]
[1747210767546,46.95354359,181.03,180.98,8.46349236]
[1747210767728,46.95354359,181.03,180.99,8.46349236]
[1747210768560,46.95354359,181.03,181.0,8.46349236]
[1747210768720,19.33381206,181.03,181.0,8.46349236]
[1747210769533,19.33381206,181.03,180.95,6.0232]
[1747210769754,19.33381206,181.03,181.01,8.46349236]
[1747210770429,19.33381206,181.03,181.0,8.46349236]
[1747210770829,55.41703595,181.03,180.96,8.46349236]
[1747210771128,46.95354359,181.03,180.97,8.46349236]
[1747210772469,46.95354359,181.03,180.98,8.46349236]
[1747210773338,46.95354359,181.03,180.99,8.46349236]
[1747210773947,8.46349236,181.0,180.91,44.64964886]
[1747210774154,8.46349236,181.0,180.94,8.46349236]
[1747210774546,8.46349236,181.0,180.91,44.64964886]
[1747210774862,19.33808497,180.99,180.94,8.46349236]
[1747210775042,19.33808497,180.99,180.95,8.46349236]
[1747210776670,19.33808497,180.99,180.91,18.64964886]
[1747210776843,13.81291784,180.99,180.95,8.46349236]
[1747210777534,8.46349236,180.98,180.9,1.5957]
[1747210777750,22.2764102,180.99,180.93,8.46349236]
[1747210778279,13.81291784,180.99,180.94,8.46349236]
[1747210779040,46.96392065,180.99,180.9,10.05919236]
[1747210779373,46.96392065,180.99,180.94,8.46349236]
[1747210779869,46.96392065,180.99,180.9,10.05919236]
[1747210779870,8.46349236,180.98,180.92,8.46349236]
[1747210780170,8.46349236,180.98,180.9,1.5957]
[1747210780369,8.46349236,180.98,180.93,8.46349236]
[1747210780753,34.46349236,180.98,180.9,1.5957]
[1747210780955,34.46349236,180.98,180.92,8.46349236]
[1747210781342,46.96911089,180.97,180.93,8.46349236]
[1747210782045,46.96911089,180.97,180.9,1.5957]
[1747210782046,19.34022213,180.97,180.95,8.46349236]
[1747210783098,19.34022213,180.97,180.9,10.05919236]
[1747210783262,19.34022213,180.97,180.95,8.46349236]
[1747210783641,19.34022213,180.97,180.94,8.46349236]
[1747210784151,19.34022213,180.97,180.96,8.46349236]
[1747210784859,19.34022213,180.97,180.9,10.05919236]
[1747210785167,19.34022213,180.97,180.96,8.46349236]
[1747210785871,27.62583568,180.99,180.96,8.46349236]
[1747210786052,27.62583568,180.99,180.97,8.46349236]
[1747210787346,27.62583568,180.99,180.96,8.46349236]
[1747210787940,19.33701656,181.0,180.98,8.46349236]
[1747210788158,19.33701656,181.0,180.99,8.46349236]
[1747210788758,19.33701656,181.0,180.98,8.46349236]
[1747210789452,19.33701656,181.0,180.97,8.46349236]
[1747210789864,19.33701656,181.0,180.98,8.46349236]
[1747210790346,19.33701656,181.0,180.97,8.46349236]
[1747210790763,19.33701656,181.0,180.98,8.46349236]
[1747210790968,19.33701656,181.0,180.97,8.46349236]
[1747210791140,19.33701656,181.0,180.98,8.46349236]
[1747210791347,19.33701656,181.0,180.97,8.46349236]
[1747210791748,19.33701656,181.0,180.91,24.64432314]
[1747210791749,19.33701656,181.0,180.98,8.46349236]
[1747210792276,5.52486187,181.0,180.99,8.46349236]
[1747210792845,5.52486187,181.0,180.94,18.79181043]
[1747210793150,5.52486187,181.0,180.99,16.92698472]
[1747210793353,5.52486187,181.0,180.99,8.46349236]
[1747210793760,5.52486187,181.0,180.99,18.44318472]
[1747210794268,19.32954105,181.07,180.99,18.44318472]
[1747210794473,19.32954105,181.07,181.03,8.46349236]
[1747210794876,19.32954105,181.07,181.05,8.46349236]
[1747210795370,19.32954105,181.07,180.99,9.97969236]
[1747210795371,19.32954105,181.07,181.03,8.46349236]
[1747210795778,19.32954105,181.07,181.05,8.46349236]
[1747210796452,19.32954105,181.07,181.03,8.46349236]
[1747210796779,19.32954105,181.07,181.05,8.46349236]
[1747210797575,19.32954105,181.07,181.03,8.46349236]
[1747210797770,46.94317113,181.07,181.04,8.46349236]
[1747210798270,55.40666349,181.07,180.99,1.5162]
[1747210798467,8.46349236,181.04,180.99,8.46349236]
[1747210798673,8.46349236,181.03,180.98,14.63099236]
[1747210798978,46.94317113,181.07,180.99,8.46349236]
[1747210799162,5.52364118,181.04,181.0,8.46349236]
[1747210799363,8.46349236,181.03,180.97,8.46349236]
[1747210799568,8.46349236,181.02,180.97,8.46349236]
[1747210799780,8.46349236,181.01,180.96,8.46349236]
[1747210799965,74.56915598,181.04,180.97,8.46349236]
[1747210799966,8.46349236,181.02,180.97,8.46349236]
[1747210800591,8.46349236,181.01,180.96,8.46349236]
[1747210800757,8.46349236,181.02,180.97,8.46349236]
[1747210801267,19.33594828,181.01,180.97,8.46349236]
[1747210801468,27.79944064,181.01,180.96,8.46349236]
[1747210801771,19.33594828,181.01,181.0,8.46349236]
[1747210801995,5.52455665,181.01,181.0,8.46349236]
[1747210803406,13.80958315,181.04,181.0,8.46349236]
[1747210803606,13.80958315,181.04,181.03,8.46349236]
[1747210804905,19.32847359,181.08,181.03,8.46349236]
[1747210805076,19.32847359,181.08,181.05,8.46349236]
[1747210805647,19.32847359,181.08,181.07,8.46349236]
[1747210805975,5.52242102,181.08,181.07,8.46349236]
[1747210806279,26.7343,181.16,181.07,8.46349236]
[1747210806280,5.51967765,181.17,181.07,16.92698472]
[1747210806481,5.51967765,181.17,181.14,8.46349236]
[1747210806789,19.31887177,181.17,181.15,8.46349236]
[1747210807705,8.46349236,181.16,181.1,8.46349236]
[1747210807920,19.31887177,181.17,181.15,8.46349236]
[1747210808225,19.31887177,181.17,181.09,6.4036]
[1747210808380,19.31887177,181.17,181.15,8.46349236]
[1747210808580,19.31887177,181.17,181.14,8.46349236]
[1747210808779,13.79919412,181.17,181.09,6.4036]
[1747210809103,13.79919412,181.17,181.14,8.46349236]
[1747210809282,13.79919412,181.17,181.09,6.4036]
[1747210809489,13.79919412,181.17,181.14,8.46349236]
[1747210810202,22.26268648,181.17,181.11,8.46349236]
[1747210810525,5.51937299,181.18,181.14,1.6317]
[1747210810806,5.51937299,181.18,181.17,8.46349236]
[1747210811029,19.31354154,181.22,181.17,8.46349236]
[1747210811522,19.31354154,181.22,181.2,8.46349236]
[1747210811692,8.46349236,181.21,181.15,8.46349236]
[1747210812013,19.31354154,181.22,181.2,8.46349236]
[1747210812425,55.36780754,181.22,181.14,1.6317]
[1747210812588,8.46349236,181.18,181.14,1.6317]
[1747210812785,8.46349236,181.2,181.15,8.46349236]
[1747210813084,27.58784964,181.24,181.19,8.46349236]
[1747210813285,19.3050193,181.3,181.23,13.49678848]
[1747210813482,5.5157198,181.3,181.29,13.49678848]
[1747210813686,5.513591,181.37,181.29,13.49678848]
[1747210813903,5.513591,181.37,181.36,13.49678848]
[1747210814487,5.513591,181.37,181.33,1.5622]
[1747210814488,19.2975685,181.37,181.33,13.49678848]
[1747210814717,32.79435698,181.37,181.28,1.5014]
[1747210815007,32.79435698,181.37,181.34,13.49678848]
[1747210815008,19.2975685,181.37,181.34,13.49678848]
[1747210815223,19.2975685,181.37,181.36,13.49678848]
[1747210815639,5.513591,181.37,181.36,13.49678848]
[1747210815789,19.01037948,181.37,181.28,1.5014]
[1747210816106,13.49678848,181.36,181.31,13.49678848]
[1747210816494,26.0,181.33,181.28,1.5014]
[1747210816723,26.0,181.33,181.24,13.49678848]
[1747210816724,13.49678848,181.3,181.24,13.49678848]
[1747210816933,19.30927948,181.26,181.22,15.14448848]
[1747210817130,19.30927948,181.26,181.22,1.6477]
[1747210817304,13.49678848,181.23,181.18,13.49678848]
[1747210817506,45.30927948,181.26,181.21,13.49678848]
[1747210817720,19.30927948,181.26,181.24,13.49678848]
[1747210817909,19.30927948,181.26,181.25,13.49678848]
[1747210818128,5.51693699,181.26,181.25,13.49678848]
[1747210819012,13.49678848,181.27,181.21,13.49678848]
[1747210819608,13.49678848,181.27,181.22,13.49678848]
[1747210820118,13.49678848,181.25,181.18,24.14]
[1747210820323,50.30432314,181.28,181.19,13.49678848]
[1747210820324,13.49678848,181.24,181.19,13.49678848]
[1747210820526,13.49678848,181.23,181.18,13.49678848]
[1747210820833,13.49678848,181.23,181.17,1.5651]
[1747210821128,13.49678848,181.23,181.12,10.01547188]
[1747210821129,13.49678848,181.18,181.12,10.01547188]
[1747210821435,26.0,181.18,181.15,13.49678848]
[1747210821737,19.31460735,181.21,181.17,26.99357696]
[1747210822045,5.51845924,181.21,181.2,13.49678848]
[1747210822209,13.79414339,181.24,181.2,19.58408848]
[1747210822210,5.51785024,181.23,181.2,19.58408848]
[1747210822409,5.51785024,181.23,181.22,13.49678848]
[1747210823012,19.30608416,181.29,181.22,13.49678848]
[1747210823215,19.30608416,181.29,181.27,13.49678848]
[1747210823833,19.30608416,181.29,181.28,13.49678848]
[1747210824042,5.51602404,181.29,181.28,13.49678848]
[1747210824716,5.51602404,181.29,181.27,1.5592]
[1747210824925,5.51602404,181.29,181.28,13.49678848]
[1747210825109,13.78794628,181.32,181.28,13.49678848]
[1747210825310,13.49678848,181.29,181.23,1.5616]
[1747210825617,26.0,181.29,181.25,13.49678848]
[1747210825816,26.0,181.29,181.23,1.5616]
[1747210826235,26.0,181.29,181.25,13.49678848]
[1747210826415,26.0,181.29,181.26,13.49678848]
[1747210826843,13.78794628,181.32,181.23,1.5616]
[1747210826844,13.78794628,181.32,181.28,13.49678848]
[1747210827143,13.78794628,181.32,181.29,13.49678848]
[1747210827314,13.78794628,181.32,181.28,13.49678848]
[1747210827631,13.78794628,181.32,181.23,27.5616]
[1747210827632,13.78794628,181.32,181.29,13.49678848]
[1747210827840,13.78794628,181.32,181.3,13.49678848]
[1747210828434,13.78794628,181.32,181.31,13.49678848]
[1747210828947,13.78794628,181.32,181.28,13.49678848]
[1747210829125,19.30305768,181.32,181.29,13.49678848]
[1747210829433,19.30305768,181.32,181.31,13.49678848]
[1747210829841,5.51450314,181.34,181.31,13.49678848]
[1747210830151,5.51450314,181.34,181.33,15.14238848]
[1747210831037,41.3502896,181.38,181.33,15.14238848]
[1747210831227,13.49678848,181.37,181.29,7.8493]
[1747210831424,67.3502896,181.38,181.29,7.8493]
[1747210831425,39.49678848,181.35,181.3,13.49678848]
[1747210831911,26.0,181.35,181.32,13.49678848]
[1747210832114,26.0,181.35,181.31,13.49678848]
[1747210832429,26.0,181.35,181.3,13.49678848]
[1747210832833,13.49678848,181.32,181.27,13.49678848]
[1747210833026,13.78853896,181.31,181.28,13.49678848]
[1747210833644,13.78853896,181.31,181.29,13.49678848]
[1747210833836,13.78853896,181.31,181.3,13.49678848]
[1747210835017,13.78853896,181.31,181.25,56.1536]
[1747210835219,27.57403628,181.33,181.28,13.49678848]
[1747210835417,13.49678848,181.32,181.27,13.49678848]
[1747210835661,27.57403628,181.33,181.24,1.5511]
[1747210835662,39.49678848,181.3,181.24,1.5511]
[1747210835962,13.49678848,181.31,181.26,13.49678848]
[1747210836448,39.49678848,181.32,181.27,13.49678848]
[1747210836622,39.49678848,181.32,181.28,13.49678848]
[1747210836623,26.0,181.32,181.28,13.49678848]
[1747210836819,26.0,181.32,181.24,1.5511]
[1747210836820,46.8732767,181.34,181.31,13.49678848]
[1747210837441,5.513591,181.37,181.33,13.49678848]
[1747210837646,5.513591,181.37,181.34,13.49678848]
[1747210838142,5.513591,181.37,181.35,13.49678848]
[1747210838459,5.513591,181.37,181.36,13.49678848]
[1747210839050,5.51267916,181.4,181.36,13.49678848]
[1747210839254,19.28975105,181.45,181.39,13.49678848]
[1747210839466,5.51116009,181.45,181.44,13.49678848]
[1747210840079,5.50994545,181.49,181.44,13.49678848]
[1747210840248,5.50994545,181.49,181.43,1.5013]
[1747210840249,5.50994545,181.49,181.48,13.49678848]
[1747210841164,5.50903481,181.52,181.48,13.49678848]
[1747210841469,5.50903481,181.52,181.49,13.49678848]
[1747210841782,5.50903481,181.52,181.51,13.49678848]
[1747210841946,5.50903481,181.52,181.5,13.49678848]
[1747210842150,5.50903481,181.52,181.51,13.49678848]
[1747210842970,5.50903481,181.52,181.44,58.14643734]
[1747210842971,5.50903481,181.52,181.5,13.49678848]
[1747210843205,13.49678848,181.52,181.43,1.5013]
[1747210843340,13.49678848,181.52,181.47,13.49678848]
[1747210843546,13.49678848,181.52,181.43,1.5013]
[1747210843547,13.49678848,181.53,181.48,13.49678848]
[1747210843750,86.31842557,181.54,181.49,13.49678848]